fUSD/lending_fUSD_20251201
["ID","MTS","AMOUNT","RATE_DAILY","PERIOD"]
[395266246,1764575449044,-200.0,0.00017342,2]
[395266247,1764575449053,-200.0,0.00017342,2]
[395266248,1764575449063,-805.42,0.00017348,2]
[395266249,1764575449082,-202.93518403,0.00017358,2]
[395266250,1764575449091,-500.0,0.00017367,2]
[395266251,1764575449100,-500.0,0.00017367,2]
[395266252,1764575449109,-180.65552809,0.00017367,2]
[395266253,1764575449118,-500.0,0.00017367,2]
[395266254,1764575449127,-3296.0,0.00017367,2]
[395266255,1764575449136,-977.0,0.00017367,2]
[395266256,1764575449145,-277.0,0.00017402,2]
[395266257,1764575449154,-277.0,0.00017445,2]
[395266258,1764575449163,-300.0,0.00017474,2]
[395266259,1764575449172,-1577.0,0.00017488,2]
[395266260,1764575449181,-2000.0,0.00017494,2]
[395266261,1764575449190,-2000.0,0.00017494,2]
[395266262,1764575449200,-2000.0,0.00017494,2]
[395266263,1764575449210,-1150.05221611,0.00017494,2]
[395266264,1764575449220,-500.0,0.00017504,2]
[395266265,1764575449229,-500.0,0.00017504,2]
[395266266,1764575449507,-219.4928398,0.00017504,2]
[395266267,1764575449517,-3296.0,0.00017504,2]
[395266268,1764575449526,-977.0,0.00017504,2]
[395266269,1764575449535,-200.0,0.00017515,2]
[395266270,1764575449545,-200.0,0.00017515,2]
[395266271,1764575449555,-1577.0,0.00017515,2]
[395266272,1764575449565,-311.1,0.00017518,2]
[395266273,1764575449577,-160.0,0.00017518,2]
[395266274,1764575449586,-257.91778498,0.00017518,2]
[395266275,1764575449595,-151.0,0.00017518,2]
[395266276,1764575449605,-566.71196907,0.0001752,2]
[395266277,1764575449614,-150.20313052,0.00017521,2]
[395266278,1764575449623,-246.86,0.0001753,2]
[395266279,1764575449632,-567.78,0.00017534,6]
[395266280,1764575449641,-230.67658058,0.00017534,2]
[395266281,1764575449651,-507.29,0.00017539,2]
[395266282,1764575449661,-600.0,0.00017568,2]
[395266283,1764575449671,-942.0,0.00017631,2]
[395266284,1764575449680,-500.0,0.00017641,2]
[395266285,1764575449690,-200.0,0.00017641,2]
[395266286,1764575449699,-3296.0,0.00017641,2]
[395266287,1764575449707,-977.0,0.00017641,2]
[395266288,1764575449716,-200.0,0.0001769,2]
[395266289,1764575449725,-1577.0,0.00017703,2]
[395266290,1764575449734,-1252.0,0.00017758,2]
[395266291,1764575449743,-300.0,0.00017762,2]
[395266292,1764575449752,-61949.8235493,0.00017763,2]
[395266293,1764575449761,-13899.1496916,0.00017763,2]
[395266294,1764575449771,-500.0,0.00017778,2]
[395266295,1764575449780,-3296.0,0.00017778,2]
[395266296,1764575449789,-977.0,0.00017778,2]
[395266297,1764575449798,-183.70217519,0.00017793,2]
[395266298,1764575449807,-574.12855637,0.00017793,2]
[395266299,1764575449815,-151.0,0.00017793,2]
[395266300,1764575449824,-691.39774486,0.00017793,2]
[395266301,1764575449833,-151.0,0.00017793,2]
[395266302,1764575449842,-151.0,0.00017793,2]
[395266303,1764575449851,-209.40437684,0.00017793,2]
[395266304,1764575449860,-277.0,0.00017797,2]
[395266305,1764575449869,-567.78,0.00017808,7]
[395266306,1764575449878,-400.0,0.00017808,5]
[395266307,1764575449887,-151.0,0.00017809,2]
[395266308,1764575449896,-500.0,0.00017915,2]
[395266309,1764575449906,-3296.0,0.00017915,2]
[395266310,1764575449916,-977.0,0.00017915,2]
[395266311,1764575449925,-1152.0,0.00017956,2]
[395266312,1764575449934,-1043.4101039,0.00017975,2]
[395266313,1764575449943,-1577.0,0.00017985,2]
[395266314,1764575449954,-42113.19875794,0.00018,2]
[395266315,1764575449963,-5000.0,0.00018,2]
[395266316,1764575449973,-241.66388594,0.00018,2]
[395266317,1764575449982,-200.0,0.00018,2]
[395266318,1764575449992,-277.0,0.00018022,2]
[395266319,1764575450001,-1000.0,0.00018024,2]
[395266320,1764575450011,-1504.49681174,0.00018042,2]
[395266321,1764575450021,-2500.0,0.00018042,2]
[395266322,1764575450030,-613.97693193,0.00018042,2]
[395266323,1764575450039,-500.0,0.00018052,2]
[395266324,1764575450048,-3296.0,0.00018052,2]
[395266325,1764575450058,-977.0,0.00018052,2]
[395266326,1764575450068,-507.29,0.00018059,2]
[395266327,1764575450077,-567.78,0.00018082,8]
[395266328,1764575450086,-1000.0,0.00018082,2]
[395266329,1764575450095,-600.0,0.00018116,2]
[395266330,1764575450105,-4609.0,0.0001813,2]
[395266331,1764575450115,-364.91804792,0.00018161,2]
[395266332,1764575450125,-500.0,0.00018189,2]
[395266333,1764575450134,-3296.0,0.00018189,2]
[395266334,1764575450144,-977.0,0.00018189,2]
[395266335,1764575450153,-246.86,0.00018231,2]
[395266336,1764575450163,-215.0738,0.00018279,2]
[395266337,1764575450172,-500.0,0.00018326,2]
[395266338,1764575450182,-3296.0,0.00018326,2]
[395266339,1764575450192,-977.0,0.00018326,2]
[395266340,1764575450202,-595.37131296,0.00018341,2]
[395266341,1764575450211,-151.0,0.00018341,2]
[395266342,1764575450220,-509.12102243,0.00018341,2]
[395266343,1764575450228,-151.0,0.00018341,2]
[395266344,1764575450238,-151.0,0.00018341,2]
[395266345,1764575450247,-361.32218259,0.00018341,2]
[395266346,1764575450258,-567.78,0.00018356,9]
[395266347,1764575450268,-151.0,0.00018357,2]
[395266348,1764575450277,-500.0,0.00018463,2]
[395266349,1764575450287,-3296.0,0.00018463,2]
[395266350,1764575450296,-977.0,0.00018463,2]
[395266351,1764575450306,-170.68870481,0.00018506,2]
[395266352,1764575450320,-3000.0,0.0001859,2]
[395266353,1764575450329,-500.0,0.000186,2]
[395266354,1764575450338,-3296.0,0.000186,2]
[395266355,1764575450348,-977.0,0.000186,2]
[395266356,1764575450360,-1043.4101039,0.00018616,2]
[395266357,1764575450370,-567.78,0.0001863,10]
[395266358,1764575450379,-600.0,0.00018664,2]
[395266359,1764575450390,-500.0,0.00018737,2]
[395266360,1764575450400,-3296.0,0.00018737,2]
[395266361,1764575450409,-977.0,0.00018737,2]
[395266362,1764575450419,-1000.0,0.0001876,2]
[395266363,1764575450429,-1600.0,0.0001879,2]
[395266364,1764575450439,-687.90238616,0.00018794,3]
[395266365,1764575450447,-150.73,0.000188,2]
[395266366,1764575450456,-150.73,0.000188,2]
[395266367,1764575450467,-150.73,0.000188,2]
[395266368,1764575450476,-150.73,0.000188,2]
[395266369,1764575450486,-150.73,0.000188,2]
[395266370,1764575450497,-528.0,0.00018874,2]
[395266371,1764575450506,-3296.0,0.00018874,2]
[395266372,1764575450516,-977.0,0.00018874,2]
[395266373,1764575450525,-322.6107,0.00018887,2]
[395266374,1764575450534,-160.0,0.00018887,2]
[395266375,1764575450543,-267.46074303,0.00018887,2]
[395266376,1764575450553,-151.0,0.00018887,2]
[395266377,1764575450563,-358.32829599,0.00018888,2]
[395266378,1764575450574,-599.60298507,0.00018888,2]
[395266379,1764575450585,-617.40005154,0.00018889,2]
[395266380,1764575450595,-151.0,0.00018889,2]
[395266381,1764575450605,-151.0,0.00018889,2]
[395266382,1764575450614,-151.0,0.00018889,2]
[395266383,1764575450624,-1508.87173656,0.000189,2]
[395266384,1764575450634,-3070.49500799,0.000189,2]
[395266385,1764575450643,-567.78,0.00018904,11]
[395266386,1764575450652,-151.0,0.00018904,2]
[395266387,1764575450662,-151.0,0.00018905,2]
[395266388,1764575450671,-246.86,0.00018932,2]
[395266389,1764575450680,-15846.3883428,0.00018963,2]
[395266390,1764575450689,-250.0,0.0001899,2]
[395266391,1764575450699,-250.0,0.0001899,2]
[395266392,1764575450709,-250.0,0.0001899,2]
[395266393,1764575450718,-250.0,0.0001899,2]
[395266394,1764575450728,-250.0,0.0001899,2]
[395266395,1764575450737,-250.0,0.0001899,2]
[395266396,1764575450746,-250.0,0.0001899,2]
[395266397,1764575450755,-250.0,0.0001899,2]
[395266398,1764575450765,-507.29,0.00018999,2]
[395266399,1764575450775,-5000.0,0.00019,2]
[395266400,1764575450784,-368.35800769,0.00019,2]
[395266401,1764575450793,-368.35800769,0.00019,2]
[395266402,1764575450802,-64900.68642986,0.00019,2]
[395266403,1764575450812,-64900.68642986,0.00019,2]
[395266404,1764575450822,-1385.58142975,0.00019,2]
[395266405,1764575450831,-300.0,0.00019,2]
[395266406,1764575450840,-3296.0,0.00019011,2]
[395266407,1764575450849,-977.0,0.00019011,2]
[395266408,1764575450859,-220.55490792,0.00019082,2]
[395266409,1764575450868,-1393.70675785,0.00019138,2]
[395266410,1764575450877,-3296.0,0.00019148,2]
[395266411,1764575450886,-977.0,0.00019148,2]
[395266412,1764575450896,-567.78,0.00019178,12]
[395266413,1764575450905,-151.0,0.00019178,2]
[395266414,1764575450914,-151.0,0.00019178,2]
[395266415,1764575450923,-481.744772,0.00019178,2]
[395266416,1764575450933,-481.744772,0.00019178,2]
[395266417,1764575450942,-481.744772,0.00019178,2]
[395266418,1764575450951,-481.744772,0.00019178,2]
[395266419,1764575450960,-156.794636,0.00019178,2]
[395266420,1764575450970,-400.0,0.00019178,6]
[395266421,1764575450979,-600.0,0.00019212,2]
[395266422,1764575450988,-1043.4101039,0.00019258,2]
[395266423,1764575450997,-3296.0,0.00019285,2]
[395266424,1764575451008,-977.0,0.00019285,2]
[395266425,1764575451018,-2129.0,0.0001929,2]
[395266426,1764575451027,-31334.9429915,0.00019403,2]
[395266427,1764575451036,-1581.8333607,0.00019403,2]
[395266428,1764575451045,-4180.3136178,0.00019403,2]
[395266429,1764575451055,-809.1724359,0.00019405,2]
[395266430,1764575451065,-3296.0,0.00019422,2]
[395266431,1764575451074,-977.0,0.00019422,2]
[395266432,1764575451084,-640.24385345,0.00019437,2]
[395266433,1764575451093,-151.0,0.00019437,2]
[395266434,1764575451103,-151.0,0.00019437,2]
[395266435,1764575451112,-151.0,0.00019437,2]
[395266436,1764575451121,-1000.0,0.00019438,2]
[395266437,1764575451130,-567.78,0.00019452,13]
[395266438,1764575451139,-151.0,0.00019452,2]
[395266439,1764575451149,-297.78701479,0.00019453,2]
[395266440,1764575451158,-3296.0,0.00019559,2]
[395266441,1764575451167,-977.0,0.00019559,2]
[395266442,1764575451177,-507.29,0.00019637,2]
[395266443,1764575451186,-3296.0,0.00019696,2]
[395266444,1764575451194,-977.0,0.00019696,2]
[395266445,1764575451203,-845.0,0.00019704,2]
[395266446,1764575451212,-567.78,0.00019726,14]
[395266447,1764575451222,-156.587,0.00019726,2]
[395266448,1764575451231,-600.0,0.00019759,2]
[395266449,1764575451240,-250.7913757,0.00019792,2]
[395266450,1764575451249,-3296.0,0.00019833,2]
[395266451,1764575451258,-977.0,0.00019833,2]
[395266452,1764575451267,-250.0,0.000199,2]
[395266453,1764575451276,-250.0,0.000199,2]
[395266454,1764575451285,-250.0,0.000199,2]
[395266455,1764575451294,-250.0,0.000199,2]
[395266456,1764575451304,-250.0,0.000199,2]
[395266457,1764575451319,-250.0,0.000199,2]
[395266458,1764575451328,-250.0,0.000199,2]
[395266459,1764575451338,-250.0,0.000199,2]
[395266460,1764575451347,-4548.96364848,0.000199,3]
[395266461,1764575451356,-1043.4101039,0.000199,2]
[395266462,1764575451367,-6991.7708479,0.00019939,2]
[395266463,1764575451376,-352.9547311,0.00019939,2]
[395266464,1764575451386,-932.754047,0.00019939,2]
[395266465,1764575451395,-6453.0,0.00019943,2]
[395266466,1764575451404,-3296.0,0.0001997,2]
[395266467,1764575451413,-977.0,0.0001997,2]
[395266468,1764575451422,-663.93287602,0.00019985,2]
[395266469,1764575451431,-151.0,0.00019985,2]
[395266470,1764575451440,-151.0,0.00019985,2]
[395266471,1764575451449,-151.0,0.00019985,2]
[395266472,1764575451459,-5000.0,0.00019999,4]
[395266473,1764575451467,-1000.0,0.0002,2]
[395266474,1764575451476,-1000.0,0.0002,3]
[395266475,1764575451486,-1000.0,0.0002,3]
[395266476,1764575451494,-1000.0,0.0002,2]
[395266477,1764575451503,-426.0,0.0002,3]
[395266478,1764575451513,-150.0,0.0002,2]
[395266479,1764575451523,-500.0,0.0002,2]
[395266480,1764575451532,-5394.12325962,0.0002,2]
[395266481,1764575451541,-14449.35868874,0.0002,5]
[395266482,1764575451550,-165419.0,0.0002,7]
[395266483,1764575451559,-334.0,0.0002,2]
[395266484,1764575451568,-427.65493559,0.0002,7]
[395266485,1764575451578,-567.78,0.0002,15]
[395266486,1764575451587,-1603.0,0.0002,2]
[395266487,1764575451596,-1322.0,0.0002,2]
[395266488,1764575451605,-610.0,0.0002,2]
[395266489,1764575451615,-3442.0,0.0002,2]
[395266490,1764575451623,-1258.0,0.0002,2]
[395266491,1764575451632,-613.0,0.0002,2]
[395266492,1764575451641,-185.65,0.0002,2]
[395266493,1764575451650,-200.0,0.0002,2]
[395266494,1764575451659,-4563.922,0.0002,2]
[395266495,1764575451668,-562.0,0.0002,2]
[395266496,1764575451677,-4704.0,0.0002,2]
[395266497,1764575451686,-61949.8235493,0.00020076,2]
[395266498,1764575451695,-13899.1496916,0.00020076,2]
[395266499,1764575451704,-3301.0973467,0.00020107,2]
[395266500,1764575451714,-986.97529964,0.00020107,2]
[395266501,1764575451723,-1000.0,0.00020116,2]
[395266502,1764575451732,-1800.0,0.00020221,2]
[395266503,1764575451741,-1800.0,0.00020221,2]
[395266505,1764575451750,-500.0,0.00020221,2]
[395266506,1764575451759,-1800.0,0.00020221,2]
[395266507,1764575451769,-500.0,0.00020221,2]
[395266508,1764575451778,-1800.0,0.00020221,2]
[395266510,1764575451787,-500.0,0.00020221,2]
[395266511,1764575451795,-1800.0,0.00020221,2]
[395266512,1764575451805,-500.0,0.00020221,2]
[395266513,1764575451814,-1800.0,0.00020221,2]
[395266514,1764575451823,-500.0,0.00020221,2]
[395266515,1764575451832,-1800.0,0.00020221,2]
[395266516,1764575451842,-500.0,0.00020221,2]
[395266517,1764575451851,-643.46979145,0.00020221,2]
[395266518,1764575451860,-1800.0,0.00020221,2]
[395266519,1764575451870,-1800.0,0.00020221,2]
[395266520,1764575451879,-1800.0,0.00020221,2]
[395266521,1764575451890,-1800.0,0.00020221,2]
[395266522,1764575451900,-1800.0,0.00020221,2]
[395266523,1764575451910,-1800.0,0.00020221,2]
[395266524,1764575451921,-1800.0,0.00020221,2]
[395266525,1764575451931,-1800.0,0.00020221,2]
[395266526,1764575451941,-1800.0,0.00020221,2]
[395266527,1764575451951,-1800.0,0.00020221,2]
[395266528,1764575451961,-1800.0,0.00020221,2]
[395266529,1764575451971,-1800.0,0.00020221,2]
[395266530,1764575451981,-1800.0,0.00020221,2]
[395266531,1764575451991,-1800.0,0.00020221,2]
[395266532,1764575452000,-1800.0,0.00020221,2]
[395266533,1764575452010,-1800.0,0.00020221,2]
[395266534,1764575452022,-1800.0,0.00020221,2]
[395266535,1764575452032,-1800.0,0.00020221,2]
[395266536,1764575452042,-1800.0,0.00020221,2]
[395266537,1764575452052,-1800.0,0.00020221,2]
[395266538,1764575452062,-1800.0,0.00020221,2]
[395266539,1764575452071,-2383.48666157,0.00020221,2]
[395266540,1764575452080,-500.0,0.00020221,2]
[395266541,1764575452090,-500.0,0.00020221,2]
[395266542,1764575452099,-500.0,0.00020221,2]
[395266543,1764575452109,-700.0,0.00020221,2]
[395266544,1764575452119,-500.0,0.00020221,2]
[395266545,1764575452129,-700.0,0.00020221,2]
[395266546,1764575452138,-2600.0,0.00020221,2]
[395266547,1764575452147,-500.0,0.00020221,2]
[395266548,1764575452157,-700.0,0.00020221,2]
[395266549,1764575452167,-2600.0,0.00020221,2]
[395266550,1764575452176,-500.0,0.00020221,2]
[395266551,1764575452187,-700.0,0.00020221,2]
[395266552,1764575452197,-2600.0,0.00020221,2]
[395266553,1764575452206,-614.70781439,0.00020221,2]
[395266554,1764575452216,-700.0,0.00020221,2]
[395266555,1764575452225,-2600.0,0.00020221,2]
[395266556,1764575452236,-2600.0,0.00020221,2]
[395266557,1764575452245,-700.0,0.00020221,2]
[395266558,1764575452255,-2600.0,0.00020221,2]
[395266559,1764575452264,-700.0,0.00020221,2]
[395266560,1764575452274,-700.0,0.00020221,2]
[395266561,1764575452284,-2600.0,0.00020221,2]
[395266563,1764575452294,-700.0,0.00020221,2]
[395266564,1764575452303,-2600.0,0.00020221,2]
[395266565,1764575452316,-513.78965828,0.00020221,2]
[395266566,1764575452326,-700.0,0.00020221,2]
[395266567,1764575452337,-2600.0,0.00020221,2]
[395266568,1764575452346,-700.0,0.00020221,2]
[395266569,1764575452356,-2600.0,0.00020221,2]
[395266570,1764575452366,-700.0,0.00020221,2]
[395266571,1764575452375,-2600.0,0.00020221,2]
[395266572,1764575452384,-700.0,0.00020221,2]
[395266573,1764575452398,-2600.0,0.00020221,2]
[395266574,1764575452409,-700.0,0.00020221,2]
[395266575,1764575452419,-2600.0,0.00020221,2]
[395266576,1764575452429,-700.0,0.00020221,2]
[395266577,1764575452439,-2600.0,0.00020221,2]
[395266578,1764575452449,-2600.0,0.00020221,2]
[395266579,1764575452459,-700.0,0.00020221,2]
[395266580,1764575452468,-500.0,0.00020221,2]
[395266581,1764575452479,-700.0,0.00020221,2]
[395266582,1764575452489,-2600.0,0.00020221,2]
[395266583,1764575452499,-500.0,0.00020221,2]
[395266584,1764575452509,-700.0,0.00020221,2]
[395266585,1764575452519,-2600.0,0.00020221,2]
[395266586,1764575452528,-500.0,0.00020221,2]
[395266587,1764575452537,-700.0,0.00020221,2]
[395266588,1764575452547,-2600.0,0.00020221,2]
[395266589,1764575452556,-500.0,0.00020221,2]
[395266590,1764575452566,-700.0,0.00020221,2]
[395266591,1764575452575,-2600.0,0.00020221,2]
[395266592,1764575452584,-883.63762433,0.00020221,2]
[395266593,1764575452593,-2600.0,0.00020221,2]
[395266594,1764575452603,-700.0,0.00020221,2]
[395266595,1764575452612,-700.0,0.00020221,2]
[395266596,1764575452622,-2600.0,0.00020221,2]
[395266597,1764575452631,-2600.0,0.00020221,2]
[395266598,1764575452640,-700.0,0.00020221,2]
[395266599,1764575452650,-700.0,0.00020221,2]
[395266600,1764575452659,-2600.0,0.00020221,2]
[395266601,1764575452668,-700.0,0.00020221,2]
[395266602,1764575452677,-2600.0,0.00020221,2]
[395266603,1764575452686,-700.0,0.00020221,2]
[395266604,1764575452695,-2600.0,0.00020221,2]
[395266605,1764575452704,-500.0,0.00020221,2]
[395266606,1764575452713,-700.0,0.00020221,2]
[395266607,1764575452723,-2600.0,0.00020221,2]
[395266608,1764575452731,-536.10598454,0.00020221,2]
[395266609,1764575452740,-1336.27404372,0.00020221,2]
[395266610,1764575452749,-2600.0,0.00020221,2]
[395266611,1764575452758,-2600.0,0.00020221,2]
[395266612,1764575452767,-3960.08146326,0.00020221,2]
[395266613,1764575452776,-500.0,0.00020221,2]
[395266614,1764575452785,-518.18736769,0.00020221,2]
[395266615,1764575452794,-334.5472959,0.00020256,2]
[395266616,1764575452803,-164.0250353,0.00020256,2]
[395266617,1764575452813,-277.35679052,0.00020256,2]
[395266618,1764575452822,-151.0,0.00020256,2]
[395266619,1764575452831,-567.78,0.00020273,16]
[395266620,1764575452840,-162.380719,0.00020274,2]
[395266621,1764575452849,-600.0,0.00020307,2]
[395266622,1764575452858,-502.87,0.000205,7]
[395266623,1764575452867,-688.49839244,0.00020533,2]
[395266624,1764575452877,-151.0,0.00020533,2]
[395266625,1764575452886,-284.78783801,0.00020533,2]
[395266626,1764575452897,-151.0,0.00020533,2]
[395266627,1764575452906,-567.78,0.00020547,17]
[395266628,1764575452915,-190.94,0.00020548,2]
[395266629,1764575452924,-21394.73,0.00020548,2]
[395266630,1764575452934,-151.0,0.00020548,2]
[395266631,1764575452943,-151.0,0.00020548,2]
[395266632,1764575452953,-151.0,0.00020548,2]
[395266633,1764575452962,-222.702902,0.00020548,2]
[395266634,1764575452971,-22529.57748285,0.000207,2]
[395266635,1764575452980,-1000.0,0.00020795,2]
[395266636,1764575452990,-405.57601841,0.00020809,2]
[395266637,1764575452999,-567.78,0.00020821,18]
[395266638,1764575453008,-168.3888056,0.00020822,2]
[395266639,1764575453018,-600.0,0.00020855,2]
[395266640,1764575453028,-250.0,0.000209,2]
[395266641,1764575453037,-250.0,0.000209,2]
[395266642,1764575453047,-250.0,0.000209,2]
[395266643,1764575453056,-250.0,0.000209,2]
[395266644,1764575453066,-250.0,0.000209,2]
[395266645,1764575453075,-250.0,0.000209,2]
[395266646,1764575453084,-250.0,0.000209,2]
[395266647,1764575453094,-250.0,0.000209,2]
[395266648,1764575453103,-15846.3883428,0.00020927,2]
[395266649,1764575453113,-2126.0,0.00020949,2]
[395266650,1764575453123,-506.17,0.00021,2]
[395266651,1764575453133,-500.0,0.00021,2]
[395266652,1764575453144,-500.0,0.00021,2]
[395266653,1764575453153,-500.0,0.00021,2]
[395266654,1764575453163,-500.0,0.00021,2]
[395266655,1764575453172,-350.0,0.00021,2]
[395266656,1764575453182,-223.0315306,0.00021018,2]
[395266657,1764575453192,-150.0,0.00021067,2]
[395266658,1764575453201,-7971.29,0.00021068,2]
[395266659,1764575453211,-345.64852823,0.00021079,2]
[395266660,1764575453220,-713.97283296,0.00021081,2]
[395266661,1764575453231,-300.7156435,0.00021081,2]
[395266662,1764575453241,-151.0,0.00021081,2]
[395266663,1764575453251,-567.78,0.00021095,19]
[395266664,1764575453260,-210.20854464,0.000213,2]
[395266665,1764575453271,-1005.57601858,0.0002134,3]
[395266666,1764575453280,-567.78,0.00021369,20]
[395266667,1764575453290,-6341.32,0.0002137,2]
[395266668,1764575453300,-186.62854163,0.0002137,2]
[395266669,1764575453310,-600.0,0.00021403,2]
[395266670,1764575453322,-507.29,0.00021473,2]
[395266671,1764575453332,-27522.52079,0.0002149,2]
[395266672,1764575453342,-57213.72804296,0.000215,2]
[395266673,1764575453351,-220.77224672,0.000215,2]
[395266674,1764575453361,-346.92554585,0.00021625,2]
[395266675,1764575453372,-287.61899177,0.00021625,2]
[395266676,1764575453381,-151.0,0.00021625,2]
[395266677,1764575453393,-621.78829552,0.00021627,2]
[395266678,1764575453403,-740.38982778,0.00021629,2]
[395266679,1764575453413,-151.0,0.00021629,2]
[395266680,1764575453670,-567.78,0.00021643,21]
[395266681,1764575453680,-5893.13323975,0.000218,7]
[395266682,1764575453690,-151.0,0.00021887,2]
[395266683,1764575453700,-2000.0,0.0002189,2]
[395266684,1764575453709,-2000.0,0.0002189,2]
[395266685,1764575453720,-2000.0,0.0002189,2]
[395266686,1764575453730,-250.0,0.00021899,2]
[395266687,1764575453740,-250.0,0.00021899,2]
[395266688,1764575453754,-500.0,0.00021917,2]
[395266689,1764575453764,-500.0,0.00021917,2]
[395266690,1764575453775,-500.0,0.00021917,2]
[395266691,1764575453786,-336.72882921,0.00021917,2]
[395266692,1764575453796,-567.78,0.00021917,22]
[395266693,1764575453806,-500.0,0.00021918,7]
[395266694,1764575453816,-5000.0,0.00021918,2]
[395266695,1764575453827,-150.0,0.00021918,2]
[395266696,1764575453836,-150.0,0.00021918,2]
[395266697,1764575453846,-9035.0,0.00021937,2]
[395266698,1764575453856,-600.0,0.00021951,5]
[395266699,1764575453866,-400.0,0.0002197,2]
[395266700,1764575453877,-400.0,0.0002197,2]
[395266701,1764575453887,-585.30265474,0.0002197,2]
[395266702,1764575453897,-700.0,0.0002197,2]
[395266703,1764575453907,-700.0,0.0002197,2]
[395266704,1764575453918,-700.0,0.0002197,2]
[395266705,1764575453928,-700.0,0.0002197,2]
[395266706,1764575453938,-700.0,0.0002197,2]
[395266707,1764575453948,-700.0,0.0002197,2]
[395266708,1764575453958,-739.89278141,0.0002197,2]
[395266709,1764575453968,-516.04791427,0.00021999,2]
[395266710,1764575453978,-666.0,0.00021999,2]
[395266711,1764575453988,-198.71657627,0.00021999,2]
[395266712,1764575453998,-666.0,0.00021999,2]
[395266713,1764575454008,-4155.27540419,0.00022,2]
[395266714,1764575454018,-798.81531354,0.00022,3]
[395266715,1764575454030,-24125.77250893,0.00022,2]
[395266716,1764575454041,-29062.3091778,0.00022,4]
[395266717,1764575454051,-5000.0,0.00022,3]
[395266718,1764575454060,-4121.04886237,0.00022,2]
[395266719,1764575454071,-767.85563141,0.00022,7]
[395266720,1764575454081,-160.97,0.00022,2]
[395266721,1764575454090,-254.59771835,0.00022,2]
[395266722,1764575454100,-151.0,0.00022,2]
[395266723,1764575454110,-2539.16,0.00022,7]
[395266724,1764575454121,-500.0,0.00022,2]
[395266725,1764575454131,-150.0,0.00022,2]
[395266726,1764575454141,-427.65493559,0.00022,3]
[395266727,1764575454152,-200.0,0.00022,2]
[395266728,1764575454162,-157.89138382,0.00022055,2]
[395266729,1764575454172,-491.45905431,0.000221,2]
[395266730,1764575454182,-238.80423263,0.0002211,2]
[395266731,1764575454192,-767.7842514,0.00022177,2]
[395266732,1764575454202,-151.0,0.00022177,2]
[395266733,1764575454211,-567.78,0.00022191,23]
[395266734,1764575454221,-200.0,0.0002222,2]
[395266735,1764575454231,-453.24281696,0.00022365,2]
[395266736,1764575454241,-262.7606808,0.000224,2]
[395266737,1764575454250,-567.78,0.00022465,24]
[395266738,1764575454259,-507.29,0.00022499,2]
[395266739,1764575454269,-600.0,0.00022499,5]
[395266740,1764575454279,-35292.78827707,0.000225,2]
[395266741,1764575454289,-64900.68642986,0.000225,2]
[395266742,1764575454298,-519.92626802,0.0002271,2]
[395266743,1764575454308,-796.19226871,0.00022725,2]
[395266744,1764575454322,-151.0,0.00022725,2]
[395266745,1764575454331,-567.90737623,0.00022739,25]
[395266746,1764575454340,-15846.3883428,0.00022891,2]
[395266747,1764575454350,-19276.36869419,0.000229,2]
[395266748,1764575454361,-359.76179104,0.00022994,2]